lending/lending_fUSD_20260317
["ID","MTS","AMOUNT","RATE_DAILY","PERIOD"]
[408513426,1773787831649,-500.0,0.00013798,2]
[408513427,1773787831659,-500.0,0.00013798,2]
[408513428,1773787831668,-500.0,0.00013798,2]
[408513429,1773787831678,-500.0,0.00013798,2]
[408513430,1773787831688,-500.0,0.00013798,2]
[408513431,1773787831706,-500.0,0.00013798,2]
[408513432,1773787831727,-500.0,0.00013798,2]
[408513434,1773787831741,-500.0,0.00013798,2]
[408513436,1773787831752,-500.0,0.00013798,2]
[408513437,1773787831762,-500.0,0.00013798,2]
[408513439,1773787831774,-500.0,0.00013798,2]
[408513442,1773787831785,-500.0,0.00013798,2]
[408513444,1773787831796,-500.0,0.00013798,2]
[408513446,1773787831805,-500.0,0.00013798,2]
[408513447,1773787831815,-500.0,0.00013798,2]
[408513450,1773787831827,-500.0,0.00013798,2]
[408513452,1773787831837,-500.0,0.00013798,2]
[408513454,1773787831848,-500.0,0.00013798,2]
[408513456,1773787831859,-500.0,0.00013798,2]
[408513458,1773787831869,-500.0,0.00013798,2]
[408513460,1773787831879,-540.14199161,0.00013798,2]
[408513462,1773787831889,-500.0,0.00013798,2]
[408513464,1773787831900,-500.0,0.00013798,2]
[408513466,1773787831910,-500.0,0.00013798,2]
[408513468,1773787831920,-213.67,0.00013798,2]
[408513470,1773787831929,-500.0,0.00013798,2]
[408513472,1773787831940,-289.8852,0.00013799,2]
[408513474,1773787831950,-1000.0,0.00013799,2]
[408513476,1773787831961,-500.0,0.00013898,2]
[408513478,1773787831972,-500.0,0.00013898,2]
[408513480,1773787831983,-213.67,0.00014072,2]
[408513482,1773787831995,-519.11389951,0.00014098,2]
[408513484,1773787832006,-5598.52261832,0.00014166,2]
[408513485,1773787832016,-213.67,0.00014346,2]
[408513486,1773787832025,-500.00416259,0.00014432,2]
[408513487,1773787832036,-500.0,0.00014432,2]
[408513488,1773787832047,-162.28266222,0.0001457,2]
[408513489,1773787832057,-213.67,0.0001462,2]
[408513490,1773787832068,-5598.52261832,0.00014633,2]
[408513491,1773787832078,-600.0,0.0001467,2]
[408513492,1773787832089,-600.0,0.0001467,2]
[408513493,1773787832100,-312.85751726,0.0001467,2]
[408513494,1773787832111,-250.0,0.0001467,2]
[408513495,1773787832120,-500.0,0.0001467,2]
[408513496,1773787832132,-213.69,0.00014894,2]
[408513497,1773787832143,-250.0,0.00015,2]
[408513498,1773787832154,-5598.52261832,0.00015099,2]
[408513499,1773787832164,-500.0,0.00015551,2]
[408513500,1773787832175,-5598.52261832,0.00015566,2]
[408513501,1773787832184,-500.0,0.00015594,2]
[408513502,1773787832193,-150.0,0.00015606,2]
[408513503,1773787832203,-1852.42,0.00015608,2]
[408513504,1773787832212,-407.0,0.0001561,2]
[408513505,1773787832222,-800.0,0.00015691,2]
[408513506,1773787832231,-5000.01,0.00015701,2]
[408513507,1773787832241,-500.0,0.00015754,2]
[408513508,1773787832250,-500.0,0.00015951,2]
[408513509,1773787832259,-160.0,0.00015972,2]
[408513510,1773787832269,-929.37600956,0.00015972,2]
[408513511,1773787832278,-500.0,0.00016023,2]
[408513512,1773787832288,-5598.52261832,0.00016033,2]
[408513513,1773787832298,-800.0,0.00016083,2]
[408513514,1773787832308,-500.0,0.00016133,2]
[408513515,1773787832317,-614.26815895,0.000162,2]
[408513516,1773787832327,-338.22903938,0.000162,2]
[408513517,1773787832336,-500.0,0.00016204,2]
[408513518,1773787832346,-500.0,0.00016206,2]
[408513519,1773787832355,-500.0,0.00016211,2]
[408513520,1773787832365,-500.0,0.00016234,2]
[408513521,1773787832374,-500.0,0.000163,2]
[408513522,1773787832384,-500.0,0.00016356,2]
[408513523,1773787832393,-1000.0,0.00016356,2]
[408513524,1773787832403,-1300.0,0.00016356,2]
[408513525,1773787832412,-1538.0,0.000164,2]
[408513526,1773787832421,-500.0,0.00016415,2]
[408513527,1773787832431,-500.0,0.00016438,2]
[408513528,1773787832440,-800.0,0.00016476,2]
[408513529,1773787832449,-500.0,0.00016476,2]
[408513530,1773787832460,-2400.0,0.00016487,2]
[408513531,1773787832470,-5598.52261832,0.000165,2]
[408513532,1773787832480,-500.0,0.00016504,2]
[408513533,1773787832490,-500.0,0.00016513,2]
[408513534,1773787832500,-500.0,0.00016566,2]
[408513535,1773787832510,-501.74189694,0.00016633,2]
[408513536,1773787832520,-500.0,0.0001664,2]
[408513537,1773787832530,-500.0,0.0001664,2]
[408513538,1773787832541,-502.06348181,0.0001664,2]
[408513539,1773787832551,-503.67175726,0.0001664,2]
[408513540,1773787832560,-500.90690833,0.0001664,2]
[408513541,1773787832570,-500.0,0.00016769,2]
[408513542,1773787832580,-800.0,0.00016868,2]
[408513543,1773787832590,-500.0,0.00016903,2]
[408513544,1773787832599,-4109.15,0.00016922,2]
[408513545,1773787832609,-150.99,0.00016922,2]
[408513546,1773787832618,-9999.99,0.00016922,2]
[408513547,1773787832628,-299.99,0.00016922,4]
[408513548,1773787832637,-5598.52261832,0.00016966,2]
[408513549,1773787832647,-300.0,0.00017,2]
[408513550,1773787832657,-679.72517875,0.00017137,2]
[408513551,1773787832670,-742.58,0.00017137,2]
[408513552,1773787832918,-115.69482125,0.00017137,2]
[408513553,1773787832929,-196.61,0.00017181,2]
[408513554,1773787832939,-1000.0,0.00017188,2]
[408513555,1773787832949,-168.0,0.00017228,2]
[408513556,1773787832959,-150.0,0.00017258,2]
[408513557,1773787832969,-252.703254,0.0001726,2]
[408513558,1773787832981,-800.0,0.0001726,2]
[408513559,1773787832990,-168.0,0.00017311,2]
[408513560,1773787833000,-500.0,0.0001737,2]
[408513561,1773787833010,-500.0,0.0001743,2]
[408513562,1773787833019,-5598.52261832,0.00017433,2]
[408513563,1773787833028,-338.776084,0.00017483,7]
[408513564,1773787833038,-195.86858,0.00017483,7]
[408513565,1773787833048,-185.62946,0.00017483,7]
[408513566,1773787833057,-500.0,0.00017486,2]
[408513567,1773787833067,-1044.0,0.00017487,2]
[408513568,1773787833076,-3511.0,0.00017487,2]
[408513569,1773787833086,-1344.0,0.00017487,2]
[408513570,1773787833095,-620.0,0.00017487,2]
[408513571,1773787833105,-1260.0,0.00017487,2]
[408513572,1773787833114,-923.0,0.00017487,2]
[408513573,1773787833123,-1214.0,0.00017487,2]
[408513574,1773787833132,-3756.0,0.00017487,2]
[408513575,1773787833142,-414.0,0.00017487,2]
[408513576,1773787833151,-407.0,0.00017562,2]
[408513577,1773787833161,-151.0,0.00017566,2]
[408513578,1773787833170,-283.18673429,0.00017639,2]
[408513582,1773787837678,-282.90006286,0.00017639,2]
[408513583,1773787837688,-184.977096,0.0001764,7]
[408513584,1773787837698,-172.752471,0.0001764,7]
[408513585,1773787837708,-168.0,0.00017701,2]
[408513586,1773787837719,-1231.439,0.00017712,2]
[408513587,1773787837728,-500.0,0.00017726,7]
[408513588,1773787837739,-1000.0,0.00017726,7]
[408513589,1773787837750,-1300.0,0.00017726,7]
[408513590,1773787837760,-1014.23929202,0.00017736,2]
[408513591,1773787837770,-5000.0,0.0001774,2]
[408513592,1773787837779,-168.0,0.00017755,2]
[408513593,1773787837789,-502.41416,0.0001782,2]
[408513594,1773787837799,-502.41417,0.0001782,2]
[408513595,1773787837809,-151.0,0.00017837,2]
[408513596,1773787837819,-3490.6730655,0.0001784,2]
[408513597,1773787837829,-2856.39068292,0.0001784,2]
[408513598,1773787837841,-421.12,0.0001784,2]
[408513599,1773787837853,-1291.65023453,0.0001784,2]
[408513600,1773787837864,-4022.776599,0.0001784,2]
[408513601,1773787837876,-3962.38505542,0.0001784,2]
[408513602,1773787837888,-482.95842253,0.0001784,2]
[408513603,1773787837899,-2595.61042589,0.0001784,2]
[408513605,1773787837919,-128179.25525111,0.0001784,2]
[408513606,1773787837929,-949.0678664,0.0001784,2]
[408513608,1773787837938,-1633.4927617,0.0001784,2]
[408513609,1773787837947,-28412.0668135,0.0001784,2]
[408513610,1773787837957,-38035.2429283,0.0001784,2]
[408513611,1773787837966,-200.0,0.00017856,2]
[408513612,1773787837977,-5800.0,0.00017883,2]
[408513613,1773787837987,-5800.0,0.00017891,2]
[408513614,1773787837997,-627.89197698,0.000179,3]
[408513615,1773787838007,-1521.11182199,0.000179,3]
[408513616,1773787838016,-5800.0,0.000179,2]
[408513617,1773787838025,-17170.69072419,0.000179,3]
[408513618,1773787838034,-2373.85708943,0.000179,2]
[408513619,1773787838044,-926.85850836,0.000179,2]
[408513624,1773787841839,5000.0,0.00032877,120]
[408513647,1773787845773,-500.0,0.00013798,2]
[408513648,1773787845784,-2275.86538648,0.00017487,2]
[408513651,1773787868743,5000.01,7.945e-05,2]
[408513652,1773787868770,3260.086573,7.945e-05,2]
[408513653,1773787906680,261.0,7.887e-05,2]
[408513654,1773787906955,261.0,8.887e-05,2]
[408513655,1773787979003,2000.0,0.00032877,120]
[408513656,1773788017737,235.0,7.887e-05,2]
[408513657,1773788017988,235.0,8.887e-05,2]
[408513658,1773788037915,5000.0,0.00032877,120]
[408513659,1773788082543,172.0,9e-07,2]
[408513660,1773788191141,6000.0,0.00032877,120]
[408513664,1773788400797,234.77312529,0.00021518,120]
[408513665,1773788401641,3836.01,8e-05,2]
[408513666,1773788401667,2056.49705447,8e-05,2]
[408513667,1773788440244,9003.6,0.00032877,120]
[408513671,1773788680035,7404.0,0.00032877,120]
[408513672,1773788729160,3495.89,0.00032877,120]
[408513673,1773788842289,5000.0,0.00032877,120]
[408513674,1773788855680,-720.0,0.00011989,2]
[408513675,1773788855709,-150.0,0.00011989,2]
[408513676,1773788867550,-3999.3857511,0.0001199,2]
[408513677,1773789000730,150.0,0.00019558,120]
[408513678,1773789001549,202.15968793,0.00019558,120]
[408513691,1773789031736,-321.0,0.0001199,2]
[408513692,1773789031747,-64689.25109381,0.0001199,2]
[408513693,1773789031798,-32935.89678512,0.0001199,2]
[408513694,1773789031812,-199.62686483,0.00012744,2]
[408513695,1773789031822,-176.66,0.00012844,2]
[408513696,1773789031832,-353.40477473,0.00013371,2]
[408513697,1773789031841,-818.14933242,0.000135,2]
[408513698,1773789031851,-3003.04596606,0.000135,2]
[408513700,1773789031861,-4095.49428288,0.000135,2]
[408513702,1773789031871,-61648.3146,0.00013599,2]
[408513704,1773789031880,-1146.29046409,0.00013599,2]
[408513706,1773789031890,-200.0,0.00013691,2]
[408513708,1773789031899,-500.0,0.00013698,2]
[408513710,1773789031908,-500.0,0.00013698,2]
[408513712,1773789031922,-500.0,0.00013698,2]
[408513713,1773789031932,-500.0,0.00013698,2]
[408513715,1773789031942,-500.0,0.00013698,2]
[408513717,1773789031951,-500.0,0.00013698,2]
[408513719,1773789031962,-500.0,0.00013698,2]
[408513721,1773789031972,-500.0,0.00013698,2]
[408513722,1773789031982,-500.0,0.00013698,2]
[408513723,1773789031994,-500.0,0.00013698,2]
[408513724,1773789032004,-289.3873478,0.00013698,2]
[408513725,1773789032018,-624.1587,0.00013699,2]
[408513726,1773789032027,-313.7832,0.00013699,2]
[408513727,1773789032036,-500.0,0.00013798,2]
[408513728,1773789032046,-500.0,0.00013798,2]
[408513729,1773789032055,-500.0,0.00013798,2]
[408513730,1773789032065,-470.97332281,0.00013798,2]
[408513731,1773789032074,-236.65201603,0.00013997,2]
[408513732,1773789032084,-500.0,0.00013997,2]
[408513733,1773789032094,-493.43210018,0.00013997,2]
[408513734,1773789032103,-2475.97,0.00013998,2]
[408513735,1773789032113,-1146.29046405,0.00014077,2]
[408513736,1773789032123,-500.0,0.00014554,2]
[408513737,1773789032133,-500.0,0.00014554,2]
[408513738,1773789032144,-500.0,0.00014554,3]
[408513739,1773789032153,-500.0,0.00014554,4]
[408513740,1773789032163,-1146.29046405,0.00014555,2]
[408513741,1773789032173,-250.0,0.00015,2]
[408513742,1773789032182,-1146.29046405,0.00015033,2]
[408513743,1773789032191,-500.0,0.00015051,2]
[408513744,1773789032201,-500.0,0.00015089,2]
[408513745,1773789032213,-500.0,0.00015089,2]
[408513746,1773789032223,-500.0,0.0001512,2]
[408513747,1773789032233,-500.0,0.00015182,2]
[408513748,1773789032242,-500.0,0.00015243,2]
[408513749,1773789032253,-500.0,0.00015405,2]
[408513750,1773789032263,-200.0,0.00015495,2]
[408513751,1773789032273,-1146.29046405,0.00015511,2]
[408513752,1773789032282,-166.66,0.00015693,2]
[408513753,1773789032292,-500.0,0.00015769,2]
[408513754,1773789032301,-500.0,0.00015876,2]
[408513755,1773789032310,-500.0,0.00015911,2]
[408513756,1773789032320,-1146.29046405,0.00015988,2]
[408513757,1773789032330,-3187.72186442,0.00016,2]
[408513758,1773789032339,-166.66,0.00016023,2]
[408513759,1773789032349,-3240.0,0.00016131,2]
[408513760,1773789032359,-333.5,0.00016199,2]
[408513761,1773789032368,-5000.00550142,0.000162,5]
[408513762,1773789032377,-2000.0,0.00016202,2]
[408513763,1773789032387,-500.0,0.0001624,2]
[408513764,1773789032396,-500.0,0.00016277,2]
[408513765,1773789032406,-500.0,0.00016321,2]
[408513766,1773789032416,-162.1,0.00016341,2]
[408513767,1773789032425,-166.66,0.00016354,2]
[408513768,1773789032434,-800.0,0.00016356,2]
[408513769,1773789032443,-500.0,0.00016356,2]
[408513770,1773789032453,-1200.0,0.00016356,2]
[408513771,1773789032462,-500.0,0.00016367,2]
[408513772,1773789032471,-500.0,0.00016368,2]
[408513773,1773789032481,-500.0,0.00016394,2]
[408513774,1773789032492,-1146.29046405,0.00016466,2]
[408513775,1773789032502,-1745.694,0.00016498,2]
[408513776,1773789032511,-1344.0,0.00016498,2]
[408513777,1773789032520,-1044.0,0.00016498,2]
[408513778,1773789032530,-620.0,0.00016498,2]
[408513779,1773789032539,-1260.0,0.00016498,2]
[408513780,1773789032549,-923.0,0.00016498,2]
[408513781,1773789032559,-1214.0,0.00016498,2]
[408513782,1773789032568,-1500.0,0.00016519,2]
[408513783,1773789032578,-2000.0,0.00016519,2]
[408513784,1773789032587,-160.0,0.00016635,2]
[408513785,1773789032608,-929.37600956,0.00016635,2]
[408513786,1773789032621,-500.0,0.00016684,2]
[408513787,1773789032632,-166.66,0.00016684,2]
[408513788,1773789032642,-2465.0,0.00016897,2]
[408513789,1773789032652,-6004.0,0.00016897,2]
[408513790,1773789032663,-1146.29046405,0.00016944,2]
[408513791,1773789032673,-1851.45024966,0.00017,2]
[408513794,1773789037766,-2256.70555665,0.00017,2]
[408513795,1773789037827,-164.73228537,0.00017,2]
[408513796,1773789037837,-300.0,0.00017,2]
[408513797,1773789037847,-500.0,0.00017001,2]
[408513798,1773789037856,-333.5,0.00017008,2]
[408513799,1773789037866,-500.0,0.00017014,2]
[408513800,1773789037876,-166.66,0.00017015,2]
[408513801,1773789037886,-500.0,0.00017045,2]
[408513802,1773789037896,-500.0,0.00017087,2]
[408513803,1773789037906,-154.02377296,0.00017104,2]
[408513804,1773789037919,-500.0,0.00017236,2]
[408513805,1773789037929,-500.0,0.00017249,2]
[408513806,1773789037939,-166.66,0.00017345,2]
[408513808,1773789037949,-707.03702825,0.00017422,2]
[408513809,1773789037976,-439.2534358,0.00017422,2]
[408513810,1773789037988,-113.67769436,0.0001748,2]
[408513813,1773789040345,-386.32230564,0.0001748,2]
[408513814,1773789040355,-417.619054,0.00017542,7]
[408513815,1773789040363,-500.0,0.00017605,2]
[408513816,1773789040373,-196.312466,0.00017613,7]
[408513817,1773789040382,-200.122699,0.0001764,7]
[408513818,1773789040391,-278.412704,0.0001764,7]
[408513819,1773789040401,-170.921714,0.0001764,7]
[408513820,1773789040412,-168.0,0.00017655,2]
[408513822,1773789040422,-985.151,0.00017717,2]
[408513823,1773789040431,-800.0,0.00017726,7]
[408513824,1773789040440,-500.0,0.00017726,7]
[408513825,1773789040450,-1200.0,0.00017726,7]
[408513826,1773789040459,-160.97,0.0001774,2]
[408513827,1773789040469,-5000.0,0.000178,2]
[408513829,1773789040479,-250.0,0.00017808,2]
[408513831,1773789040488,-333.5,0.00017818,2]
[408513832,1773789040498,-236.283,0.0001782,2]
[408513833,1773789040507,-236.28301,0.0001782,2]
[408513834,1773789040516,-500.0,0.00017839,2]
[408513835,1773789040525,-500.0,0.00017839,2]
[408513836,1773789040535,-69.20204733,0.00017894,2]
[408513837,1773789040547,-430.79795267,0.00017894,2]
[408513838,1773789040556,-500.0,0.00017899,2]
[408513839,1773789040567,-513.59237161,0.00017899,2]
[408513840,1773789040576,-500.0,0.00017899,2]
[408513841,1773789040585,-1146.29046405,0.000179,2]
[408513843,1773789040595,-2442.31921167,0.000179,2]
[408513853,1773789040991,-1639.80632838,0.000179,2]
[408513854,1773789041021,-591.07158026,0.000179,2]
[408513855,1773789041033,-644.38,0.000179,2]
[408513886,1773789045814,-414.0,0.00016897,2]
[408513887,1773789045824,-427.27171535,0.000179,2]
[408513888,1773789045933,-576.63411028,0.000179,2]
[408513894,1773789068353,5000.01,7.945e-05,2]
[408513895,1773789091298,666.0,0.00032877,120]
[408513897,1773789335593,172.0,9e-07,2]
[408513898,1773789346543,210.35168,0.00032,120]
[408513899,1773789935352,186.0,0.00032877,120]
[408513900,1773790018808,-216.37688298,0.00013598,2]
[408513901,1773790018831,-200.0,0.0001369,2]
[408513902,1773790018856,-1133.62311702,0.00013697,2]
[408513909,1773790231923,-2054.21,0.00013336,2]
[408513910,1773790231934,-618.15075844,0.00013697,2]
[408513911,1773790231947,-581.84924156,0.00013697,2]
[408513912,1773790231958,-107.31212048,0.00013698,2]
[408513913,1773790232041,-392.68787952,0.00013698,2]
[408513914,1773790232052,-500.0,0.00013698,2]
[408513915,1773790232062,-500.0,0.00013698,2]
[408513916,1773790232072,-500.0,0.00013698,2]
[408513918,1773790232083,-500.0,0.00013698,2]
[408513919,1773790232093,-500.0,0.00013698,2]
[408513920,1773790232103,-500.0,0.00013698,2]
[408513921,1773790232113,-300.0,0.00015067,2]
[408513922,1773790232125,-1394.0,0.00015067,2]
[408513923,1773790232136,-500.0,0.00015264,2]
[408513925,1773790232146,-500.0,0.00015563,2]
[408513926,1773790232156,-500.0,0.00015905,2]
[408513927,1773790232167,-1852.42,0.00015934,2]
[408513928,1773790232177,-929.37600956,0.00015975,2]
[408513929,1773790232189,-500.0,0.00016045,2]
[408513930,1773790232199,-150.0,0.00016081,2]
[408513931,1773790232209,-303.0,0.00016082,2]
[408513932,1773790232219,-1425.64,0.00016124,2]
[408513933,1773790232228,-303.440082,0.00016219,2]
[408513934,1773790232238,-800.0,0.00016356,2]
[408513935,1773790232249,-500.0,0.00016356,2]
[408513936,1773790232269,-1100.0,0.00016356,2]
[408513937,1773790232279,-500.0,0.00016497,2]
[408513938,1773790232289,-500.0,0.00016497,2]
[408513939,1773790232299,-500.0,0.00016497,2]
[408513940,1773790232309,-500.0,0.00016497,3]
[408513941,1773790232319,-500.0,0.00016497,4]
[408513942,1773790232329,-166.66,0.00016605,2]
[408513943,1773790232341,-500.0,0.00016652,2]
[408513944,1773790232351,-500.0,0.00016807,2]
[408513945,1773790232361,-500.0,0.00016816,2]
[408513946,1773790232375,-405.0,0.00016899,2]
[408513947,1773790232386,-166.66,0.00017153,2]
[408513948,1773790232396,-150.0,0.00017186,2]
[408513949,1773790232406,-150.0,0.00017186,2]
[408513950,1773790232416,-150.0,0.00017186,2]
[408513951,1773790232426,-150.0,0.00017186,2]
[408513952,1773790232436,-150.0,0.00017186,2]
[408513953,1773790232446,-500.0,0.000172,6]
[408513954,1773790232456,-150.0,0.00017214,2]
[408513955,1773790232466,-150.0,0.00017214,2]
[408513956,1773790232476,-150.0,0.00017214,2]
[408513957,1773790232486,-150.0,0.00017214,2]
[408513958,1773790232496,-500.0,0.00017214,2]
[408513959,1773790232506,-500.0,0.00017214,2]
[408513960,1773790232516,-427.34335344,0.00017214,2]
[408513961,1773790232527,-1000.0,0.000173,6]
[408513962,1773790232538,-1600.0,0.000174,6]
[408513963,1773790232549,-500.0,0.00017455,2]
[408513964,1773790232558,-1000.0,0.0001748,2]
[408513965,1773790232568,-1000.0,0.0001748,2]
[408513966,1773790232578,-1000.0,0.0001748,2]
[408513967,1773790232588,-1000.0,0.0001748,2]
[408513968,1773790232598,-983.809,0.0001748,2]
[408513969,1773790232608,-497.2936,0.00017487,2]
[408513970,1773790232617,-4835.1334,0.00017487,2]
[408513971,1773790232627,-1260.0,0.00017488,2]
[408513972,1773790232637,-923.0,0.00017488,2]
[408513973,1773790232647,-1214.0,0.00017488,2]
[408513974,1773790232658,-620.0,0.00017488,2]
[408513975,1773790232668,-3511.0,0.00017488,2]
[408513976,1773790232678,-2500.0,0.00017495,2]
[408513977,1773790232688,-997.07207799,0.000175,2]
[408513978,1773790232699,-8405.5307381,0.000175,2]
[408513979,1773790232709,-2100.0,0.000175,6]
[408513980,1773790232720,-1358.24810611,0.00017544,2]
[408513981,1773790232734,-8405.53073803,0.00017544,2]
[408513982,1773790232744,-997.07207792,0.00017557,2]
[408513983,1773790232754,-500.0,0.00017573,2]
[408513984,1773790232764,-19426.48974935,0.00017587,2]
[408513985,1773790232779,-530.57794545,0.00017587,2]
[408513986,1773790232792,-255.75980045,0.00017587,2]
[408513987,1773790233278,-646.21,0.00017587,2]
[408513993,1773790237981,-1905.05167747,0.00017587,2]
[408513994,1773790237992,-1989.45402679,0.00017587,2]
[408513995,1773790238103,-1276.49027241,0.00017587,2]
[408514013,1773790240251,-99.00125136,0.00017587,2]
[408514014,1773790240411,-8913.48486617,0.00017587,2]
[408514016,1773790243076,-1044.0,0.00017488,2]
[408514017,1773790243087,-677.10095332,0.00017587,2]
[408514018,1773790243137,-1423.0623945,0.00017587,2]
[408514025,1773790245910,-216.37688296,0.00017487,2]
[408514027,1773790245920,-2251.01318263,0.00017587,2]
[408514028,1773790245929,-3080.010068,0.00017587,2]
[408514029,1773790245941,-11166.4901841,0.00017587,2]
[408514030,1773790245951,-8405.53073803,0.00017589,2]
[408514031,1773790245961,-172.560124,0.00017589,7]
[408514032,1773790245971,-392.077011,0.00017589,7]
[408514033,1773790245980,-500.0,0.00017594,2]
[408514034,1773790245990,-500.0,0.00017594,2]
[408514035,1773790245999,-500.0,0.00017594,2]
[408514036,1773790246008,-500.0,0.00017594,2]
[408514037,1773790246018,-500.0,0.00017594,2]
[408514038,1773790246028,-500.0,0.00017594,2]
[408514039,1773790246038,-331.37858127,0.00017594,2]
[408514040,1773790246142,-168.62141873,0.00017594,2]
[408514041,1773790246151,-500.0,0.00017594,2]
[408514042,1773790246161,-83.67996024,0.00017594,2]
[408514043,1773790246322,-304.17728412,0.00017594,2]
[408514045,1773790261497,527.17,8.416e-05,2]
[408514046,1773790261731,527.17,8.859e-05,2]
[408514047,1773790261948,527.17,9.302e-05,2]
[408514048,1773791432057,-527.17,9.745e-05,2]
[408514050,1773791432067,-527.17,0.00010188,2]
[408514051,1773791432077,-66.4677338,0.00010631,2]
[408514052,1773791432108,-314.57995572,0.00010631,2]
[408514053,1773791432119,-146.12231048,0.00010631,2]
[408514054,1773791432128,-527.17,0.00011074,2]
[408514055,1773791432138,-216.37688296,0.00011417,2]
[408514056,1773791432148,-527.17,0.00011517,2]
[408514057,1773791432157,-96.74312752,0.0001196,2]
[408514058,1773791432169,-320.65660765,0.0001196,2]
[408514059,1773791432180,-109.77026483,0.0001196,2]
[408514060,1773791432190,-515.84915857,0.00012403,2]
[408514061,1773791432201,-11.32084143,0.00012403,2]
[408514062,1773791432211,-527.17,0.00012846,2]
[408514063,1773791432220,-527.17,0.00013289,2]
[408514064,1773791432229,-527.17,0.00013732,2]
[408514065,1773791432239,-527.17,0.00014175,2]
[408514066,1773791432249,-527.17,0.00014618,2]
[408514067,1773791432259,-166.66,0.0001478,2]
[408514068,1773791432268,-250.0,0.00015,2]
[408514069,1773791432278,-527.17,0.00015061,2]
[408514071,1773791432288,-166.66,0.00015091,2]
[408514072,1773791432297,-1200.0,0.00015091,2]
[408514073,1773791432307,-500.0,0.00015092,2]
[408514075,1773791432316,-311.4,0.00015383,2]
[408514077,1773791432325,-166.66,0.00015402,2]
[408514079,1773791432335,-166.75,0.00015402,2]
[408514081,1773791432344,-300.0,0.0001541,2]
[408514083,1773791432354,-500.0,0.00015412,2]
[408514085,1773791432364,-200.0,0.00015493,2]
[408514087,1773791432373,-225.0,0.00015504,2]
[408514089,1773791432382,-527.17,0.00015504,2]
[408514090,1773791432392,-162.1,0.00015506,2]
[408514091,1773791432402,-500.0,0.00015552,2]
[408514092,1773791432411,-3240.0,0.00015557,2]
[408514093,1773791432421,-1746.64730654,0.00015581,2]
[408514094,1773791432437,-1184.84269346,0.00015581,2]
[408514095,1773791432446,-5749.39,0.00015703,2]
[408514096,1773791432456,-343.96,0.00015705,2]
[408514097,1773791432465,-166.66,0.00015713,2]
[408514098,1773791432476,-500.0,0.00015763,2]
[408514099,1773791432486,-500.0,0.00015833,2]
[408514100,1773791432495,-2000.0,0.0001589,2]
[408514101,1773791432505,-527.17,0.00015947,2]
[408514102,1773791432514,-217.17474024,0.00015971,2]
[408514103,1773791432526,-924.05253866,0.00015971,2]
[408514104,1773791432538,-621.13759098,0.00015971,2]
[408514105,1773791432549,-935.0,0.00015971,2]
[408514106,1773791432561,-234.12513012,0.00015971,2]
[408514107,1773791432571,-44.49242188,0.00015974,2]
[408514108,1773791432583,-884.88358768,0.00015974,2]
[408514109,1773791432592,-166.66,0.00016024,2]
[408514110,1773791432602,-500.0,0.00016178,2]
[408514111,1773791432611,-166.66,0.00016335,2]
[408514112,1773791432621,-500.0,0.00016345,2]
[408514113,1773791432631,-500.0,0.00016356,2]
[408514114,1773791432640,-900.0,0.00016356,2]
[408514115,1773791432650,-1200.0,0.00016356,2]
[408514116,1773791432659,-2931.49,0.0001636,2]